bitfinex/quotes_SOLUSD_20230703
["timestamp","ask_amount","ask_price","bid_price","bid_amount"]
[1688419502804,55.0,19.008,18.998,21.265]
[1688419503005,22.255,19.007,18.998,125.854]
[1688419504614,90.95860396,19.011,18.998,125.854]
[1688419504910,55.0,19.01,18.998,125.854]
[1688419506103,22.255,19.007,18.998,125.854]
[1688419506700,55.0,19.01,18.998,125.854]
[1688419508196,22.255,19.007,18.998,125.854]
[1688419508598,79.549,19.007,18.998,21.265]
[1688419508800,55.0,19.006,18.998,21.265]
[1688419509104,22.258,19.004,18.998,21.265]
[1688419509494,77.259,19.003,18.998,21.265]
[1688419514105,55.0,19.003,18.998,21.265]
[1688419515503,57.286,19.01,18.998,125.854]
[1688419515692,22.255,19.007,18.998,125.854]
[1688419515897,497.489,19.007,18.994,0.8766603]
[1688419516108,491.32085653,19.006,18.994,0.8766603]
[1688419516313,497.533,19.003,18.994,0.8766603]
[1688419516609,9.93062311,19.002,18.994,0.8766603]
[1688419516795,79.579,19.0,18.994,0.8766603]
[1688419516996,79.589,18.998,18.994,0.8766603]
[1688419517205,22.267,18.996,18.994,0.8766603]
[1688419517717,77.269,18.995,18.994,0.8766603]
[1688419521100,134.599,18.995,18.994,0.8766603]
[1688419529103,457.92962311,18.995,18.973,22.294]
[1688419529417,79.635,18.987,18.967,30.0]
[1688419529624,79.635,18.987,18.97,22.297]
[1688419529625,55.0,18.986,18.97,22.297]
[1688419529932,55.0,18.986,18.97,79.703]
[1688419530098,102.23352311,18.994,18.971,20.0]
[1688419530305,55.25104849,18.995,18.977,22.289]
[1688419530608,79.624,18.989,18.972,22.295]
[1688419530802,79.624,18.989,18.964,57.423]
[1688419530997,22.285,18.981,18.971,22.296]
[1688419531213,22.285,18.981,18.97,22.297]
[1688419531422,22.285,18.981,18.96,53.2202852]
[1688419531625,22.285,18.981,18.965,22.304]
[1688419531921,55.0,18.98,18.965,22.304]
[1688419532307,77.286,18.98,18.965,22.304]
[1688419532705,22.286,18.98,18.965,22.304]
[1688419533014,55.0,18.979,18.965,22.304]
[1688419533513,22.289,18.978,18.965,22.304]
[1688419533906,55.0,18.977,18.965,22.304]
[1688419534121,77.29,18.977,18.965,22.304]
[1688419534313,77.29,18.977,18.959,93.3634]
[1688419534513,77.29,18.977,18.964,22.304]
[1688419534717,77.29,18.977,18.965,20.0]
[1688419535221,77.29,18.977,18.965,42.303]
[1688419535420,103.35918501,18.977,18.962,22.306]
[1688419535605,103.35918501,18.977,18.948,57.471]
[1688419535606,3.0,18.975,18.948,57.471]
[1688419535926,470.1,18.976,18.937,57.505]
[1688419535927,313.4,18.969,18.937,57.505]
[1688419536231,22.31,18.96,18.939,22.333]
[1688419536431,79.746,18.96,18.939,22.333]
[1688419536637,55.0,18.959,18.939,20.01336072]
[1688419536835,22.318,18.953,18.935,53.35358945]
[1688419537128,22.318,18.953,18.939,22.334]
[1688419537325,22.318,18.953,18.939,22.333]
[1688419537529,22.318,18.953,18.925,393.2]
[1688419537706,55.0,18.952,18.925,57.541]
[1688419537915,55.0,18.952,18.911,27.34399546]
[1688419537916,22.329,18.944,18.916,57.568]
[1688419538213,57.484,18.945,18.913,27.03502294]
[1688419538214,22.328,18.945,18.925,22.351]
[1688419538419,55.0,18.952,18.925,22.351]
[1688419538420,77.329,18.944,18.925,22.351]
[1688419538715,77.329,18.944,18.925,17.851]
[1688419538926,77.329,18.944,18.927,22.348]
[1688419539124,390.729,18.944,18.927,22.348]
[1688419539434,77.329,18.944,18.927,79.884]
[1688419539613,99.677,18.944,18.927,22.348]
[1688419540111,22.332,18.942,18.927,22.348]
[1688419540312,55.0,18.941,18.927,22.348]
[1688419540610,55.0,18.941,18.904,165.36851497]
[1688419540611,125.28684907,18.94,18.921,22.355]
[1688419540814,125.28684907,18.94,18.893,3.0]
[1688419540815,22.341,18.934,18.914,22.364]
[1688419541014,22.341,18.934,18.911,22.367]
[1688419541015,335.741,18.934,18.911,22.367]
[1688419541214,335.741,18.934,18.905,57.603]
[1688419541215,313.4,18.932,18.905,57.603]
[1688419541419,22.35,18.927,18.914,22.363]
[1688419541618,55.0,18.926,18.914,22.363]
[1688419542104,22.344,18.932,18.914,22.363]
[1688419542318,53.79497562,18.937,18.914,22.363]
[1688419542525,69.1386538,18.94,18.914,79.939]
[1688419542730,9.87286467,18.942,18.914,82.939]
[1688419542928,22.327,18.946,18.914,82.939]
[1688419543508,22.327,18.946,18.924,79.897]
[1688419543714,57.451,18.956,18.924,79.897]
[1688419543913,9.87286467,18.949,18.924,79.897]
[1688419544516,113.6921538,18.956,18.924,79.897]
[1688419544717,61.2411538,18.956,18.924,79.897]
[1688419544913,79.78,18.952,18.924,79.897]
[1688419545122,393.18,18.952,18.924,79.897]
[1688419545321,9.87286467,18.951,18.924,79.897]
[1688419545526,61.2411538,18.956,18.924,79.897]
[1688419545726,3.0,18.957,18.924,79.897]
[1688419545940,22.32,18.952,18.924,79.897]
[1688419546229,61.241153,18.956,18.924,79.897]
[1688419546417,9.87286467,18.955,18.924,79.897]
[1688419546623,22.317,18.954,18.924,79.897]
[1688419546828,22.317,18.954,18.933,22.341]
[1688419547130,22.325,18.947,18.933,22.341]
[1688419547522,32.19786467,18.947,18.933,22.341]
[1688419547723,22.325,18.947,18.933,22.341]
[1688419548034,31.92122142,18.947,18.93,22.345]
[1688419548238,9.59622142,18.946,18.919,57.559]
[1688419548523,22.335,18.939,18.927,22.348]
[1688419549630,22.335,18.939,18.926,22.35]
[1688419549833,55.0,18.938,18.92,110.654]
[1688419550016,55.0,18.938,18.923,22.353]
[1688419550217,22.339,18.936,18.923,22.353]
[1688419550517,22.348,18.928,18.909,57.591]
[1688419550721,19.848,18.928,18.912,22.366]
[1688419550922,22.354,18.923,18.912,22.366]
[1688419551430,22.356,18.921,18.912,22.366]
[1688419551606,22.355,18.922,18.912,22.366]
[1688419551812,22.356,18.921,18.912,22.366]
[1688419552428,22.354,18.925,18.912,22.366]
[1688419552628,55.0,18.924,18.912,22.366]
[1688419553512,22.354,18.925,18.912,22.366]
[1688419553716,9.5781647,18.929,18.912,22.366]
[1688419553915,22.35,18.926,18.912,22.366]
[1688419554115,83.44706631,18.936,18.912,22.366]
[1688419554116,9.5781647,18.933,18.912,22.366]
[1688419554426,22.349,18.927,18.913,20.0]
[1688419554627,22.349,18.927,18.917,22.36]
[1688419554933,21.349,18.927,18.917,22.36]
[1688419555330,22.348,18.928,18.917,22.36]
[1688419555517,67.1721647,18.933,18.917,22.36]
[1688419555721,22.347,18.929,18.917,22.36]
[1688419556118,22.346,18.93,18.917,22.36]
[1688419556317,57.594,18.933,18.917,22.36]
[1688419556820,22.344,18.931,18.917,22.36]
[1688419557218,9.5781647,18.93,18.917,22.36]
[1688419557531,77.347,18.929,18.917,22.36]
[1688419558228,22.35,18.926,18.917,22.36]
[1688419558418,22.349,18.927,18.917,22.36]
[1688419558626,9.5781647,18.928,18.917,22.36]
[1688419558835,74.847,18.929,18.917,22.36]
[1688419559216,52.5,18.929,18.917,22.36]
[1688419559831,22.347,18.929,18.917,22.36]
[1688419560235,57.594,18.933,18.917,22.36]
[1688419560732,9.5781647,18.932,18.917,22.36]
[1688419561041,55.0,18.931,18.917,22.36]
[1688419561334,86.9231647,18.931,18.917,22.36]
[1688419561836,64.5781647,18.931,18.917,22.36]
[1688419562021,370.893,18.942,18.917,22.36]
[1688419562341,22.342,18.933,18.917,22.36]
[1688419563945,55.0,18.932,18.917,22.36]
[1688419564247,87.0791647,18.939,18.917,22.36]
[1688419564539,22.337,18.938,18.925,22.35]
[1688419564928,22.337,18.938,18.925,33.18719922]
[1688419565233,22.333,18.941,18.932,22.342]
[1688419565635,22.332,18.942,18.932,22.342]
[1688419565839,57.478,18.947,18.932,22.342]
[1688419566431,22.33,18.943,18.932,22.342]
[1688419566632,22.329,18.944,18.932,22.342]
[1688419567939,22.329,18.944,18.926,10.83719922]
[1688419567940,127.217,18.944,18.926,57.537]
[1688419568128,127.217,18.944,18.931,22.343]
[1688419568332,127.217,18.944,18.93,22.344]
[1688419568538,127.217,18.944,18.922,57.55]
[1688419568736,313.4,18.943,18.914,94.6182]
[1688419568940,184.796,18.935,18.922,22.354]
[1688419569336,397.97611759,18.942,18.919,22.357]
[1688419569337,22.345,18.931,18.919,22.357]
[1688419569539,55.0,18.93,18.919,22.358]
[1688419569729,22.345,18.931,18.919,22.358]
[1688419572027,55.0,18.93,18.919,22.358]
[1688419572345,22.349,18.927,18.919,22.358]
[1688419572730,22.348,18.928,18.919,22.358]
[1688419572926,115.035,18.935,18.919,22.358]
[1688419573123,22.347,18.929,18.919,22.358]
[1688419573325,22.345,18.931,18.919,22.358]
[1688419573735,22.345,18.931,18.919,33.19519922]
[1688419575347,127.305,18.931,18.919,10.83719922]
[1688419575553,127.305,18.931,18.916,22.361]
[1688419575554,75.0,18.93,18.916,22.361]
[1688419575749,22.35,18.926,18.916,22.361]
[1688419576049,55.0,18.925,18.913,22.365]
[1688419576351,22.355,18.922,18.913,22.364]
[1688419576555,55.0,18.921,18.913,22.364]
[1688419576725,22.355,18.922,18.913,22.364]
[1688419576726,22.358,18.919,18.913,22.364]
[1688419577445,22.359,18.918,18.913,22.364]
[1688419577643,22.359,18.919,18.913,22.365]
[1688419577945,22.358,18.92,18.913,22.365]
[1688419578331,22.357,18.921,18.913,22.365]
[1688419578528,55.0,18.923,18.913,22.365]
[1688419578726,55.0,18.922,18.913,22.365]
[1688419579128,77.355,18.922,18.913,22.365]
[1688419579653,55.0,18.922,18.913,22.365]
[1688419579834,77.354,18.922,18.913,22.365]
[1688419581452,55.0,18.922,18.913,22.365]
[1688419582050,77.355,18.922,18.913,22.365]
[1688419582744,55.0,18.922,18.913,22.365]
[1688419582936,35.95102368,18.929,18.913,22.365]
[1688419583138,22.355,18.922,18.913,22.365]
[1688419583738,26.37490609,18.929,18.913,22.365]
[1688419583943,22.351,18.926,18.913,22.365]
[1688419584452,136.91411759,18.926,18.904,95.157]
[1688419584662,136.91411759,18.926,18.91,22.368]
[1688419584850,229.79031759,18.926,18.91,22.368]
[1688419585056,220.2142,18.926,18.91,22.368]
[1688419585359,55.0,18.925,18.91,22.368]
[1688419585538,22.356,18.921,18.91,22.368]
[1688419586661,22.355,18.922,18.91,22.368]
[1688419586865,55.0,18.921,18.91,22.368]
[1688419587039,22.353,18.923,18.91,22.368]
[1688419587359,55.0,18.922,18.91,22.368]
[1688419588659,77.354,18.922,18.91,22.368]
[1688419588842,55.0,18.922,18.91,22.368]
[1688419589347,77.355,18.922,18.91,33.20519922]
[1688419589548,55.0,18.922,18.91,33.20519922]
[1688419589949,77.355,18.922,18.91,33.20519922]
[1688419590171,77.355,18.922,18.911,10.83719922]
[1688419590462,77.355,18.922,18.914,22.364]
[1688419591357,27.44745161,18.889,18.886,27.34399546]
[1688419591552,27.44745161,18.889,18.887,185.258]
[1688419592257,27.44745161,18.889,18.887,22.396]
[1688419592645,27.44745161,18.889,18.887,80.054]
[1688419592957,27.44745161,18.889,18.887,22.396]
[1688419593259,27.44745161,18.889,18.887,80.054]
[1688419593560,27.44745161,18.889,18.887,22.396]
[1688419594239,27.44745161,18.889,18.887,127.6]
[1688419595244,27.44745161,18.889,18.887,22.396]
[1688419596457,27.94745161,18.889,18.887,22.396]
[1688419597662,57.631,18.897,18.883,57.669]
[1688419597842,22.387,18.895,18.883,55.669]
[1688419598165,37.02356959,18.898,18.886,22.396]
[1688419598457,57.608,18.904,18.886,22.396]
[1688419598659,0.5,18.899,18.886,22.396]
[1688419598838,22.38,18.901,18.886,33.23319922]
[1688419599040,57.599,18.906,18.887,10.83719922]
[1688419599243,0.5,18.899,18.89,80.039]
[1688419599439,22.38,18.901,18.89,80.039]
[1688419600059,22.379,18.902,18.89,80.039]
[1688419601248,0.5,18.899,18.89,80.039]
[1688419601939,22.378,18.902,18.89,80.039]
[1688419602146,0.5,18.899,18.89,80.039]
[1688419602353,57.599,18.907,18.89,80.039]
[1688419602575,0.5,18.899,18.89,80.039]
[1688419603245,22.379,18.908,18.89,90.87619922]
[1688419603458,0.5,18.909,18.891,85.83719922]
[1688419603761,0.5,18.909,18.896,185.167]
[1688419604058,0.5,18.909,18.897,55.0]
[1688419604251,0.5,18.909,18.9,185.125]
[1688419605462,22.339423,18.91,18.9,185.125]
[1688419605660,57.568,18.917,18.9,185.125]
[1688419607048,22.367,18.912,18.9,79.997]
[1688419608062,22.367,18.912,18.9,22.38]
[1688419608963,22.367,18.912,18.9,79.999]
[1688419609463,105.01,18.922,18.9,79.999]
[1688419609668,22.362,18.916,18.9,79.999]
[1688419609963,22.362,18.916,18.901,91.2921]
[1688419610267,22.362,18.916,18.905,22.374]
[1688419613177,22.361,18.917,18.905,22.374]
[1688419613467,22.36,18.918,18.905,22.374]
[1688419613848,22.357,18.92,18.905,22.374]
[1688419614049,57.538,18.927,18.91,79.955]
[1688419614365,104.97,18.93,18.914,22.363]
[1688419614366,162.499,18.93,18.914,22.363]
[1688419614546,57.529,18.93,18.914,22.363]
[1688419615172,22.347,18.928,18.914,22.363]
[1688419615349,57.519,18.933,18.914,22.363]
[1688419615667,22.347,18.929,18.914,33.20019922]
[1688419616181,57.519,18.933,18.914,33.20019922]
[1688419616182,22.346,18.93,18.914,33.20019922]
[1688419617460,22.345,18.931,18.914,33.20019922]
[1688419617774,22.345,18.931,18.914,22.363]
[1688419617962,22.344,18.932,18.914,22.363]
[1688419618266,22.341,18.934,18.914,22.363]
[1688419618566,22.339,18.935,18.92,184.929]
[1688419618751,22.338,18.937,18.92,184.929]
[1688419618961,57.484,18.945,18.921,154.787]
[1688419619269,22.334,18.94,18.928,79.88]
[1688419620451,57.48,18.946,18.928,79.88]
[1688419620773,22.333,18.941,18.928,79.88]
[1688419620959,57.48,18.946,18.928,79.88]
[1688419621157,95.7639,18.947,18.928,79.88]
[1688419621356,57.48,18.945,18.928,79.88]
[1688419622171,57.471,18.949,18.928,79.88]
[1688419622774,22.329,18.944,18.928,79.88]
[1688419623564,57.468,18.95,18.928,79.88]
[1688419623759,22.326,18.947,18.928,79.88]
[1688419624071,57.456,18.954,18.934,184.791]
[1688419624263,22.32,18.952,18.934,184.791]
[1688419624464,22.318,18.953,18.94,184.733]
[1688419624655,22.318,18.954,18.94,184.733]
[1688419624855,57.429,18.963,18.941,20.0]
[1688419625070,22.311,18.96,18.941,20.0]
[1688419625266,98.6424,18.964,18.946,184.675]
[1688419625667,22.308,18.962,18.946,184.675]
[1688419626774,57.426,18.965,18.946,184.675]
[1688419627372,22.307,18.963,18.946,184.675]
[1688419627775,22.306,18.964,18.946,184.675]
[1688419627974,79.731,18.965,18.946,184.675]
[1688419628286,22.303,18.967,18.946,184.675]
[1688419628460,22.303,18.967,18.947,98.9176]
[1688419628776,22.303,18.967,18.953,184.613]
[1688419630273,22.301,18.968,18.953,184.613]
[1688419630480,57.404,18.969,18.953,184.613]
[1688419630680,162.123,18.974,18.953,184.613]
[1688419630977,22.297,18.972,18.953,184.613]
[1688419631188,57.387,18.977,18.953,184.613]
[1688419631477,57.387,18.977,18.947,98.9176]
[1688419631478,22.294,18.974,18.96,184.536]
[1688419631683,22.294,18.974,18.96,79.742]
[1688419632369,79.686,18.974,18.96,79.742]
[1688419634479,22.297,18.971,18.96,79.742]
[1688419634683,22.297,18.972,18.96,79.742]
[1688419634860,57.392,18.974,18.96,79.742]
[1688419635061,114.24798453,18.982,18.96,79.742]
[1688419635288,20.0,18.979,18.96,79.742]
[1688419635464,22.293,18.975,18.96,79.742]
[1688419636184,113.65723935,18.981,18.96,79.742]
[1688419636361,22.293,18.975,18.961,55.0]
[1688419636566,22.291,18.977,18.965,184.495]
[1688419637179,20.0,18.98,18.965,184.495]
[1688419637378,22.29,18.977,18.965,184.495]
[1688419637683,57.36,18.986,18.965,195.33219922]
[1688419637880,57.36,18.986,18.966,164.83859922]
[1688419638084,22.284,18.983,18.972,79.696]
[1688419638990,105.526435,18.989,18.972,79.696]
[1688419639171,22.282,18.984,18.972,79.696]
[1688419639375,161.982,18.99,18.972,79.696]
[1688419640090,214.532,18.99,18.972,79.696]
[1688419640275,20.0,18.989,18.972,79.696]
[1688419640996,22.28,18.986,18.972,79.696]
[1688419643294,22.278,18.987,18.972,79.696]
[1688419643595,22.279,18.986,18.972,79.696]
[1688419644182,20.0,18.989,18.972,79.696]
[1688419644380,22.28,18.986,18.972,79.696]
[1688419645697,79.638,18.986,18.972,79.696]
[1688419646489,22.28,18.986,18.972,79.696]
[1688419652187,22.279,18.991,18.972,79.696]
[1688419652386,97.7964,18.997,18.978,184.368]
[1688419652387,22.275,18.99,18.978,184.368]
[1688419652784,22.274,18.991,18.978,184.368]
[1688419652985,22.274,18.991,18.982,79.652]
[1688419653389,57.333,18.995,18.982,79.652]
[1688419653697,57.324,18.997,18.982,79.652]
[1688419654287,22.27,18.995,18.982,79.652]
[1688419655583,22.27,18.995,18.982,22.283]
[1688419655886,22.274,18.991,18.982,22.283]
[1688419656894,22.274,18.991,18.982,79.653]
[1688419658394,22.273,18.992,18.982,79.653]
[1688419658605,57.328,18.996,18.982,79.653]
[1688419658802,22.273,18.992,18.982,22.283]
[1688419660602,22.272,18.993,18.982,22.283]
[1688419662814,22.27,18.995,18.982,22.283]
[1688419663600,22.265,18.998,18.983,65.83719922]
[1688419663808,57.308,19.003,18.987,184.277]
[1688419663809,22.265,18.999,18.987,184.277]
[1688419664611,57.308,19.003,18.987,195.11419922]
[1688419665314,79.582,18.999,18.987,22.277]
[1688419665608,79.582,18.999,18.967,26.98043506]
[1688419665609,145.24025824,18.999,18.985,22.279]
[1688419665789,22.271,18.993,18.986,22.279]
[1688419667192,17.271,18.993,18.986,22.279]
[1688419667890,17.271,18.993,18.968,10.83719922]
[1688419667891,79.634,18.987,18.978,22.288]
[1688419668111,79.634,18.987,18.974,57.392]
[1688419668303,55.0,18.986,18.974,57.392]
[1688419668615,96.9752,18.991,18.976,22.29]
[1688419668805,22.278,18.987,18.976,22.29]
[1688419669009,22.277,18.988,18.976,22.29]
[1688419669511,22.277,18.988,18.976,33.12719922]
[1688419669717,22.277,18.988,18.976,22.29]
[1688419670016,22.277,18.988,18.967,25.93069357]
[1688419670017,22.277,18.988,18.968,10.83719922]
[1688419670195,57.341,18.995,18.976,22.29]
[1688419670196,22.284,18.982,18.976,22.29]
[1688419670396,22.284,18.982,18.969,104.748]
[1688419670602,79.654,18.982,18.973,22.293]
[1688419671703,79.654,18.982,18.966,104.764]
[1688419671901,22.29,18.977,18.967,57.414]
[1688419672096,184.423,18.973,18.964,10.83719922]
[1688419672295,184.423,18.973,18.956,22.313]
[1688419672502,184.474,18.968,18.956,22.313]
[1688419672815,79.729,18.964,18.956,22.313]
[1688419673020,79.729,18.964,18.954,22.316]
[1688419673411,79.729,18.964,18.955,20.0]
[1688419673709,79.729,18.964,18.953,22.318]
[1688419674011,79.729,18.964,18.955,22.315]
[1688419677196,79.729,18.964,18.952,22.318]
[1688419677503,55.0,18.963,18.942,10.83719922]
[1688419677703,184.577,18.957,18.946,22.326]
[1688419678818,79.76,18.957,18.946,22.326]
[1688419680919,22.314,18.957,18.946,79.805]
[1688419681119,22.314,18.957,18.946,75.805]
[1688419682306,22.313,18.958,18.946,75.805]
[1688419682509,22.311,18.959,18.947,55.0]
[1688419682718,57.426,18.964,18.95,79.786]
[1688419683221,22.31,18.961,18.95,79.786]
[1688419685926,22.31,18.961,18.95,22.321]
[1688419688707,22.31,18.961,18.95,79.788]
[1688419688931,104.768,18.966,18.95,79.788]
[1688419689228,104.733,18.972,18.95,90.62519922]
[1688419689523,105.586284,18.978,18.951,85.83719922]
[1688419689826,22.295,18.973,18.959,184.554]
[1688419690325,57.381,18.979,18.96,10.83719922]
[1688419690528,22.294,18.974,18.965,79.722]
[1688419690824,57.384,18.978,18.965,79.722]
[1688419691015,22.293,18.975,18.965,79.722]
[1688419692025,22.291,18.976,18.965,79.722]
[1688419692510,22.29,18.977,18.965,79.722]
[1688419693016,22.289,18.978,18.965,79.722]
[1688419693216,22.288,18.979,18.965,90.55919922]
[1688419694412,21.288,18.979,18.965,90.55919922]
[1688419694842,22.286,18.981,18.966,55.0]
[1688419695134,22.282,18.984,18.97,184.442]
[1688419695322,22.281,18.985,18.97,184.442]
[1688419695622,22.28,18.985,18.975,184.397]
[1688419696528,52.55,18.984,18.975,184.397]
[1688419696713,52.55,18.981,18.975,184.397]
[1688419698733,22.285,18.982,18.975,79.682]
[1688419699525,22.284,18.983,18.975,79.682]
[1688419700225,57.36,18.986,18.975,79.682]
[1688419701113,22.283,18.983,18.975,79.682]
[1688419701510,57.36,18.986,18.975,79.682]
[1688419702213,22.282,18.984,18.975,79.682]
[1688419703116,22.281,18.985,18.975,79.682]
[1688419703318,22.28,18.986,18.975,79.682]
[1688419705632,22.279,18.987,18.975,79.682]
[1688419707218,22.278,18.988,18.975,79.682]
[1688419708036,22.282,18.984,18.975,79.682]
[1688419709529,22.282,18.984,18.975,22.292]
[1688419709738,22.286,18.981,18.974,22.293]
[1688419710113,22.29,18.977,18.974,22.293]
[1688419711031,22.29,18.977,18.973,22.293]
[1688419712442,22.289,18.978,18.973,22.293]
[1688419712731,57.375,18.984,18.973,22.293]
[1688419712932,104.661,18.986,18.973,22.293]
[1688419712933,22.285,18.982,18.973,22.293]
[1688419715315,92.0394,18.987,18.973,22.293]
[1688419715532,22.281,18.985,18.973,22.293]
[1688419717724,22.285,18.981,18.973,22.293]
[1688419718633,52.55,18.98,18.973,22.293]
[1688419718933,22.288,18.979,18.973,22.293]
[1688419720230,22.288,18.979,18.944,760.1]
[1688419720435,22.292,18.975,18.972,22.295]
[1688419720936,22.292,18.975,18.971,22.296]
[1688419721421,55.0,18.978,18.971,22.296]
[1688419722334,22.291,18.976,18.971,22.296]
[1688419722735,22.29,18.977,18.971,22.296]
[1688419723045,22.289,18.978,18.971,22.296]
[1688419723839,22.288,18.979,18.971,22.296]
[1688419724527,26.39361656,18.992,18.971,22.296]
[1688419724528,52.55,19.001,18.972,65.83719922]
[1688419724731,22.276,18.989,18.977,184.379]
[1688419724937,22.275,18.99,18.977,184.379]
[1688419725347,161.907,18.999,18.977,195.21619922]
[1688419725637,22.27,18.995,18.978,65.83719922]
[1688419725937,22.27,18.995,18.983,184.32]
[1688419726625,52.55,18.994,18.983,184.32]
[1688419726825,52.55,18.992,18.983,184.32]
[1688419727228,57.313,19.001,18.984,55.0]
[1688419727528,22.267,18.997,18.989,79.623]
[1688419728044,57.313,19.001,18.989,184.262]
[1688419729142,22.266,18.997,18.989,184.262]
[1688419729536,22.263,19.001,18.989,184.262]
[1688419729729,77.264,19.0,18.989,184.262]
[1688419730033,22.264,19.0,18.989,184.262]
[1688419731843,22.262,19.001,18.989,184.262]
[1688419735045,79.574,19.001,18.989,184.262]
[1688419735240,22.262,19.001,18.989,184.262]
[1688419741254,57.304,19.005,18.989,184.262]
[1688419741454,22.259,19.004,18.989,184.262]
[1688419742033,22.259,19.004,18.99,95.6405]
[1688419742250,79.562,19.004,18.994,22.269]
[1688419746653,184.118,19.004,18.994,22.269]
[1688419747156,210.88038696,19.004,18.994,22.269]
[1688419747556,22.259,19.004,18.994,22.269]
[1688419747765,57.288,19.01,18.995,20.0]
[1688419747944,57.288,19.01,18.999,22.263]
[1688419748137,22.253,19.009,18.999,22.263]
[1688419748455,126.782,19.009,18.999,22.263]
[1688419748758,126.782,19.009,18.992,104.62]
[1688419748957,126.782,19.009,18.984,30.0]
[1688419749260,126.782,19.009,18.991,22.273]
[1688419749460,309.26013637,19.008,18.991,22.273]
[1688419749759,629.17432067,19.008,18.991,22.273]
[1688419749952,184.128,19.003,18.991,22.273]
[1688419750153,73.0020104,19.002,18.991,22.273]
[1688419750457,79.583,18.999,18.991,22.273]
[1688419750762,75.0,18.998,18.991,22.273]
[1688419750960,22.267,18.996,18.991,22.273]
[1688419751160,79.594,18.996,18.99,22.274]
[1688419751367,55.0,18.995,18.972,91.5317]
[1688419751560,22.272,18.993,18.99,22.274]
[1688419751761,22.272,18.993,18.989,22.274]
[1688419751940,99.594,18.998,18.989,22.274]
[1688419752147,22.267,18.997,18.989,22.274]
[1688419752562,57.303,19.005,18.989,126.913]
[1688419752857,22.261,19.002,18.989,126.913]
[1688419753060,22.26,19.003,18.989,137.75019922]
[1688419753467,22.259,19.004,18.995,79.598]